bitfinex-derivatives/quotes_BTCF0:USTF0_20250501
["timestamp","ask_amount","ask_price","bid_price","bid_amount"]
[1746115264571,0.3959,96958.0,96930.0,0.3608]
[1746115264771,0.3959,96958.0,96940.0,0.39095414]
[1746115264772,0.206243,96941.0,96940.0,0.39095414]
[1746115264971,0.2062348,96943.0,96942.0,0.3577911]
[1746115265390,0.2062348,96943.0,96942.0,0.2577911]
[1746115265565,0.2062348,96943.0,96942.0,0.2062324]
[1746115265771,0.2062348,96943.0,96942.0,0.2759124]
[1746115265965,0.2062388,96941.0,96940.0,0.002]
[1746115266172,0.2062388,96941.0,96940.0,0.2779209]
[1746115266379,0.206243,96939.0,96938.0,0.56959146]
[1746115266582,0.206243,96939.0,96938.0,0.43302716]
[1746115266786,0.206243,96939.0,96938.0,0.63927236]
[1746115267076,0.206243,96939.0,96938.0,0.43302716]
[1746115267379,0.206243,96939.0,96938.0,0.36234716]
[1746115267578,0.206243,96939.0,96931.0,0.01547]
[1746115267579,0.2062579,96932.0,96931.0,0.01547]
[1746115267772,0.2062771,96923.0,96922.0,0.2062791]
[1746115267977,0.2062877,96919.0,96918.0,0.0515718]
[1746115268276,0.2062877,96919.0,96918.0,0.6186595]
[1746115268479,0.2062877,96919.0,96918.0,0.6883395]
[1746115268780,0.2062877,96919.0,96918.0,0.6186595]
[1746115269479,0.2062877,96919.0,96918.0,0.6883395]
[1746115269673,0.2062877,96919.0,96918.0,0.6533595]
[1746115269873,0.2062877,96919.0,96918.0,0.7230395]
[1746115270275,0.0301,96922.0,96921.0,0.2062813]
[1746115270478,0.2062613,96933.0,96932.0,0.2062537]
[1746115271783,0.2072613,96933.0,96932.0,0.2062537]
[1746115271973,0.2072558,96933.0,96932.0,0.2062537]
[1746115272173,0.001,96933.0,96932.0,0.2062537]
[1746115272378,0.2072558,96933.0,96932.0,0.2062537]
[1746115273082,0.2072558,96933.0,96932.0,0.2102537]
[1746115273378,0.2062558,96933.0,96932.0,0.2112537]
[1746115274378,0.0318,96938.0,96934.0,0.0515629]
[1746115274581,0.2062299,96946.0,96945.0,0.2062303]
[1746115275085,0.206243,96940.0,96939.0,0.2062382]
[1746115275284,0.2062452,96938.0,96937.0,0.3608]
[1746115275581,0.0319,96939.0,96938.0,0.3062452]
[1746115276481,0.238143,96939.0,96938.0,0.2062452]
[1746115276680,0.2062452,96938.0,96937.0,0.3608]
[1746115276874,0.2062452,96938.0,96937.0,0.5670458]
[1746115277878,0.2365452,96938.0,96937.0,0.5982458]
[1746115278884,0.0321,96938.0,96937.0,0.6002458]
[1746115279184,0.032,96945.0,96944.0,0.2062324]
[1746115279377,0.032,96945.0,96944.0,0.3062324]
[1746115279572,0.05308818,96977.0,96944.0,0.1]
[1746115279778,0.05308818,96977.0,96952.0,0.2062154]
[1746115279779,0.032,96953.0,96952.0,0.2062154]
[1746115280081,0.032,96953.0,96952.0,0.2758954]
[1746115280482,0.032,96953.0,96952.0,0.3408954]
[1746115281183,0.065,96953.0,96952.0,0.3408954]
[1746115282380,0.066,96953.0,96952.0,0.3408954]
[1746115282576,0.2722132,96953.0,96952.0,0.10268]
[1746115283175,0.2722132,96953.0,96952.0,0.3088954]
[1746115283375,0.2722132,96953.0,96952.0,0.10268]
[1746115283682,0.2722132,96953.0,96952.0,0.2392154]
[1746115283882,0.2062239,96948.0,96947.0,0.6392238]
[1746115284281,0.032,96949.0,96948.0,0.2062239]
[1746115285289,0.0644,96949.0,96948.0,0.2369239]
[1746115285582,0.002,96953.0,96948.0,0.0634]
[1746115285784,0.0515384,96981.0,96951.0,0.1]
[1746115285785,0.0515434,96972.0,96951.0,0.1]
[1746115285981,0.0515422,96974.0,96965.0,0.5669877]
[1746115286180,0.2061835,96968.0,96965.0,0.5669877]
[1746115286480,0.2071856,96966.0,96965.0,0.5669877]
[1746115287780,0.2717856,96966.0,96965.0,0.5669877]
[1746115288486,0.2727856,96966.0,96965.0,0.5669877]
[1746115288986,0.2747856,96966.0,96965.0,0.5669877]
[1746115289385,0.2747856,96966.0,96965.0,0.3608]
[1746115289687,0.2747856,96966.0,96965.0,0.5669877]
[1746115290279,0.0686,96966.0,96965.0,0.5669877]
[1746115290485,0.004,96966.0,96965.0,0.5669877]
[1746115290788,0.004,96966.0,96965.0,0.6002877]
[1746115291483,0.2101856,96966.0,96965.0,0.6002877]
[1746115292687,0.2416856,96966.0,96965.0,0.6002877]
[1746115293284,0.2101856,96966.0,96965.0,0.6002877]
[1746115293987,0.004,96966.0,96965.0,0.6002877]
[1746115295283,0.002,96966.0,96965.0,0.6012877]
[1746115295483,0.001,96966.0,96965.0,0.6012877]
[1746115295685,0.001,96966.0,96965.0,0.6022877]
[1746115304194,0.001,96966.0,96965.0,0.5689877]
[1746115304685,0.0647,96966.0,96965.0,0.5689877]
[1746115305986,0.001,96966.0,96965.0,0.5689877]
[1746115306187,0.001,96966.0,96965.0,0.6706477]
[1746115306389,0.001,96966.0,96965.0,0.67848642]
[1746115306791,0.001,96966.0,96965.0,0.77848642]
[1746115307495,0.0306,96972.0,96971.0,0.206175]
[1746115307695,0.0322,96977.0,96976.0,0.2061643]
[1746115307894,0.0322,96977.0,96976.0,0.5669643]
[1746115308687,0.0322,96977.0,96976.0,0.6303643]
[1746115309795,0.031,96986.0,96976.0,0.4242]
[1746115309989,0.031,96986.0,96985.0,0.2061452]
[1746115310185,0.0333,96992.0,96991.0,0.2061325]
[1746115311086,0.0333,96992.0,96991.0,0.0634]
[1746115311287,0.002,96992.0,96991.0,0.2695325]
[1746115311483,0.004,96992.0,96991.0,0.2695325]
[1746115312288,0.2101303,96992.0,96991.0,0.2390325]
[1746115313489,0.2081303,96992.0,96991.0,0.2400325]
[1746115313897,0.2081303,96992.0,96991.0,0.0339]
[1746115314096,0.2061303,96992.0,96991.0,0.001]
[1746115314393,0.3092303,96992.0,96991.0,0.002]
[1746115317206,0.3092303,96992.0,96991.0,0.001]
[1746115317400,0.3092303,96992.0,96991.0,0.002]
[1746115320996,0.3092303,96992.0,96979.0,0.3608]
[1746115320997,0.2061473,96984.0,96979.0,0.3608]
[1746115321401,0.2061558,96980.0,96979.0,0.3608]
[1746115322495,0.2061558,96980.0,96979.0,0.566958]
[1746115322698,0.2061558,96980.0,96979.0,0.3628]
[1746115323300,0.2061558,96980.0,96979.0,0.568958]
[1746115323499,0.2061558,96980.0,96979.0,0.601558]
[1746115323698,0.2061558,96980.0,96979.0,0.3954]
[1746115324406,0.2061558,96980.0,96979.0,0.601558]
[1746115325304,0.2061558,96980.0,96979.0,0.3954]
[1746115325497,0.2061558,96980.0,96979.0,0.3628]
[1746115327704,0.2371558,96980.0,96979.0,0.3628]
[1746115328105,0.24814892,96980.0,96979.0,0.3628]
[1746115329497,0.2371558,96980.0,96979.0,0.3628]
[1746115330307,0.2371558,96980.0,96979.0,0.568958]
[1746115330508,0.2061558,96980.0,96979.0,0.568958]
[1746115331101,0.2061556,96981.0,96980.0,0.2061516]
[1746115331409,0.2061556,96981.0,96980.0,0.2706516]
[1746115332907,0.2061518,96988.0,96987.0,0.2061367]
[1746115333107,0.2061518,96988.0,96987.0,0.6331367]
[1746115333295,0.2576886,96988.0,96987.0,0.6331367]
[1746115333811,0.2576886,96988.0,96987.0,0.6658367]
[1746115334206,0.2576886,96988.0,96987.0,0.6698367]
[1746115334813,0.2576886,96988.0,96987.0,0.6658367]
[1746115335014,0.2576886,96988.0,96987.0,0.6738367]
[1746115336017,0.2576886,96988.0,96987.0,0.6728367]
[1746115337618,0.2576886,96988.0,96987.0,0.6718367]
[1746115338010,0.2576886,96988.0,96987.0,0.6688367]
[1746115338216,0.2576886,96988.0,96987.0,0.6718367]
[1746115340621,0.2576886,96988.0,96987.0,0.6688367]
[1746115340822,0.2576886,96988.0,96987.0,0.6718367]
[1746115342920,0.5515284,97000.0,96990.0,0.0515334]
[1746115343116,0.5515284,97000.0,96995.0,0.566924]
[1746115343117,0.2071218,96996.0,96995.0,0.566924]
[1746115343313,0.001,96996.0,96995.0,0.566924]
[1746115343622,0.001,96996.0,96995.0,0.630424]
[1746115344023,0.0015,97005.0,97004.0,0.2061048]
[1746115344225,0.0015,97005.0,97004.0,0.5669048]
[1746115344525,0.0015,97005.0,97004.0,0.5990217]
[1746115344714,0.0015,97005.0,97004.0,0.6302217]
[1746115345121,0.2060925,97010.0,97009.0,0.2060898]
[1746115346922,0.2362925,97010.0,97009.0,0.2060898]
[1746115349924,0.2362925,97010.0,97009.0,0.2090898]
[1746115350426,0.2362925,97010.0,97009.0,0.2120898]
[1746115354429,0.2362925,97010.0,97009.0,0.006]
[1746115354930,0.60755691,97010.0,97009.0,0.006]
[1746115355128,0.5970925,97010.0,97009.0,0.006]
[1746115356139,0.5970925,97010.0,97009.0,0.005]
[1746115356627,0.5970925,97010.0,97009.0,0.004]
[1746115357631,0.5970925,97010.0,97009.0,0.002]
[1746115357831,0.5970925,97010.0,97009.0,0.004]
[1746115358734,0.6281925,97010.0,97009.0,0.004]
[1746115359230,0.6281925,97010.0,97009.0,0.002]
[1746115359430,0.6281925,97010.0,97009.0,0.003]
[1746115359932,0.6281925,97010.0,97009.0,0.002]
[1746115360530,0.2061048,97004.0,97003.0,0.03016]
[1746115360830,0.0515256,97005.0,96996.0,0.0312]
[1746115361036,0.2061197,96997.0,96996.0,0.0312]
[1746115361230,0.2061197,96997.0,96996.0,0.03636]
[1746115361735,0.2061197,96997.0,96996.0,0.2373218]
[1746115362228,0.2662197,96997.0,96996.0,0.2373218]
[1746115363027,0.2662197,96997.0,96996.0,0.0312]
[1746115363228,0.2662197,96997.0,96996.0,0.0362]
[1746115363526,0.2662197,96997.0,96996.0,0.2423218]
[1746115364624,0.0326,97004.0,97003.0,0.206107]
[1746115364828,0.2383942,97009.0,97008.0,0.2060963]
[1746115365639,0.2383942,97009.0,97008.0,0.2690963]
[1746115366431,0.062,97011.0,97010.0,0.2060921]
[1746115366635,0.23709,97011.0,97010.0,0.2060921]
[1746115367436,0.23709,97011.0,97010.0,0.2090921]
[1746115367637,0.29999,97011.0,97010.0,0.2090921]
[1746115368334,0.29999,97011.0,97010.0,0.003]
[1746115369135,0.29999,97011.0,97010.0,0.006]
[1746115369638,0.29999,97011.0,97010.0,0.003]
[1746115369837,0.29999,97011.0,97010.0,0.006]
[1746115371942,0.29999,97011.0,97010.0,0.003]
[1746115372238,0.2060942,97009.0,97008.0,0.2374963]
[1746115372437,0.2060942,97009.0,97008.0,0.0314]
[1746115372638,0.2060942,97009.0,97008.0,0.2374963]
[1746115373742,0.2060942,97009.0,97008.0,0.2434963]
[1746115375740,0.2060942,97009.0,97008.0,0.2414963]
[1746115375947,0.2060942,97009.0,97008.0,0.2444963]
[1746115376246,0.2060942,97009.0,97008.0,0.2414963]
[1746115376546,0.2388942,97009.0,97008.0,0.2444963]
[1746115376743,0.2709942,97009.0,97008.0,0.2444963]
[1746115377938,0.2060942,97009.0,97008.0,0.2444963]
[1746115378238,0.2576119,97013.0,97012.0,0.2060815]
[1746115378542,0.2060878,97012.0,97011.0,0.2373878]
[1746115378936,0.2388878,97012.0,97011.0,0.2373878]
[1746115379137,0.2388878,97012.0,97011.0,0.0313]
[1746115379336,0.2716878,97012.0,97011.0,0.0313]
[1746115380646,0.2060942,97009.0,97008.0,0.004]
[1746115381037,0.2061048,97004.0,97003.0,0.36596]
[1746115381232,0.2061048,97004.0,97003.0,0.3608]
[1746115381946,0.2061048,97004.0,97003.0,0.566907]
[1746115382348,0.2061048,97004.0,97003.0,0.3608]
[1746115382549,0.2366048,97004.0,97003.0,0.566907]
[1746115382748,0.2366048,97004.0,97003.0,0.574907]
[1746115382943,0.2366048,97004.0,97003.0,0.3688]
[1746115383147,0.2366048,97004.0,97003.0,0.008]
[1746115384047,0.2366048,97004.0,97003.0,0.214107]
[1746115384249,0.2366048,97004.0,97003.0,0.008]
[1746115384955,0.2366048,97004.0,97003.0,0.574907]
[1746115385448,0.2061048,97004.0,97003.0,0.3688]
[1746115386149,0.2394048,97004.0,97003.0,0.3688]
[1746115386343,0.2394048,97004.0,97003.0,0.574907]
[1746115386743,0.2394048,97004.0,97003.0,0.3688]
[1746115386942,0.2394048,97004.0,97003.0,0.574907]
[1746115387144,0.2394048,97004.0,97003.0,0.3688]
[1746115387345,0.2394048,97004.0,97003.0,0.574907]
[1746115387653,0.2394048,97004.0,97003.0,0.3688]
[1746115389557,0.2394048,97004.0,97003.0,0.3991]
[1746115390939,0.2394048,97004.0,97003.0,0.605207]
[1746115391155,0.0515248,97007.0,97006.0,0.2061006]
[1746115392654,0.2576252,97007.0,97006.0,0.2061006]
[1746115393348,0.2576252,97007.0,97006.0,0.2091006]
[1746115393550,0.2576252,97007.0,97006.0,0.2131006]
[1746115393750,0.2576252,97007.0,97006.0,0.007]
[1746115393951,0.2576252,97007.0,97006.0,0.2131006]
[1746115394153,0.2576252,97007.0,97006.0,0.2091006]
[1746115394453,0.2576252,97007.0,97006.0,0.2141006]
[1746115394950,0.2576252,97007.0,97006.0,0.2131006]
[1746115395749,0.2576252,97007.0,97006.0,0.2438006]
[1746115395952,0.2576252,97007.0,97006.0,0.2749006]
[1746115396558,0.2576252,97007.0,97006.0,0.3067006]
[1746115396944,0.2576252,97007.0,97006.0,0.3077006]
[1746115397460,0.2576252,97007.0,97006.0,0.3037006]
[1746115397652,0.2576252,97007.0,97006.0,0.3067006]
[1746115397848,0.2576252,97007.0,97006.0,0.0377]
[1746115398057,0.2576252,97007.0,97006.0,0.0347]
[1746115398250,0.2576252,97007.0,97006.0,0.0387]
[1746115398650,0.2576252,97007.0,97006.0,0.0377]
[1746115400061,0.2576252,97007.0,97006.0,0.0337]
[1746115400257,0.2576252,97007.0,97006.0,0.006]
[1746115400465,0.6184252,97007.0,97006.0,0.006]
[1746115400656,0.206107,97003.0,97002.0,0.00515]
[1746115400854,0.2061388,96988.0,96987.0,0.00154659]
[1746115402062,0.2372388,96988.0,96987.0,0.00354659]
[1746115402263,0.2696388,96988.0,96987.0,0.00354659]
[1746115403267,0.2696388,96988.0,96987.0,0.00454659]
[1746115403463,0.2696388,96988.0,96987.0,0.00354659]
[1746115404570,0.2061537,96981.0,96980.0,0.3608]
[1746115404960,0.206158,96979.0,96978.0,0.01872]
[1746115405162,0.2061856,96966.0,96962.0,0.3608]
[1746115406287,0.2716856,96966.0,96963.0,0.03]
[1746115407283,0.2716856,96966.0,96965.0,0.01141673]
[1746115409791,0.2062132,96953.0,96952.0,0.00154715]
[1746115410082,0.2062132,96953.0,96952.0,0.20776255]
[1746115410486,0.2062132,96953.0,96952.0,0.24006255]
[1746115410880,0.2062132,96953.0,96952.0,0.27146255]
[1746115411083,0.2699132,96953.0,96952.0,0.27446255]
[1746115411282,0.2699132,96953.0,96952.0,0.27746255]
[1746115411493,0.2699132,96953.0,96952.0,0.28500761]
[1746115411876,0.2699132,96953.0,96952.0,0.28200761]
[1746115412181,0.2699132,96953.0,96952.0,0.28500761]
[1746115412586,0.2699132,96953.0,96952.0,0.28200761]
[1746115412781,0.2699132,96953.0,96952.0,0.28500761]
[1746115413183,0.2699132,96953.0,96952.0,0.28200761]
[1746115413390,0.2699132,96953.0,96952.0,0.28500761]
[1746115414080,0.2062013,96961.0,96960.0,0.206192]
[1746115414386,0.2577236,96972.0,96971.0,0.206175]
[1746115414781,0.2061792,96970.0,96969.0,0.206178]
[1746115414982,0.2061732,96972.0,96971.0,0.2061707]
[1746115416191,0.2061483,96987.0,96986.0,0.2576741]
[1746115416486,0.2061495,96984.0,96983.0,0.2061484]
[1746115416676,0.2061495,96984.0,96983.0,0.2706484]
[1746115417977,0.2389495,96984.0,96983.0,0.2766484]
[1746115418690,0.2389495,96984.0,96983.0,0.2736484]
[1746115418885,0.2389495,96984.0,96983.0,0.2756484]
[1746115419092,0.2389495,96984.0,96983.0,0.0381]
[1746115419493,0.2389495,96984.0,96983.0,0.0371]
[1746115419695,0.2389495,96984.0,96983.0,0.004]
[1746115419991,0.2389495,96984.0,96983.0,0.002]
[1746115420191,0.2389495,96984.0,96983.0,0.004]
[1746115420587,0.2389495,96984.0,96983.0,0.003]
[1746115421087,0.2389495,96984.0,96983.0,0.002]
[1746115421288,0.2389495,96984.0,96983.0,0.003]
[1746115421588,0.2399495,96984.0,96983.0,0.001]
[1746115422893,0.2061686,96974.0,96973.0,0.0332]
[1746115423688,0.2720686,96974.0,96973.0,0.0332]
[1746115423981,0.2720686,96974.0,96973.0,0.0342]
[1746115424696,0.2720686,96974.0,96973.0,0.0352]
[1746115425391,0.2391686,96974.0,96973.0,0.0352]
[1746115425589,0.2061686,96974.0,96973.0,0.0352]
[1746115426590,0.2061686,96974.0,96973.0,0.0342]
[1746115426791,0.2061686,96974.0,96973.0,0.0352]
[1746115426992,0.2061686,96974.0,96973.0,0.2403707]
[1746115427181,0.2061686,96974.0,96973.0,0.2423707]
[1746115427388,0.2061686,96974.0,96973.0,0.2413707]
[1746115427585,0.2061686,96974.0,96973.0,0.2423707]
[1746115428695,0.2061686,96974.0,96973.0,0.2403707]
[1746115428901,0.2061686,96974.0,96973.0,0.2443707]
[1746115429091,0.2061686,96974.0,96973.0,0.2473707]
[1746115429898,0.2061686,96974.0,96973.0,0.0412]
[1746115430294,0.2061686,96974.0,96973.0,0.0372]
[1746115430594,0.2061686,96974.0,96973.0,0.2433707]
[1746115430787,0.2061686,96974.0,96973.0,0.2443707]
[1746115430988,0.2061686,96974.0,96973.0,0.2423707]
[1746115431189,0.2061686,96974.0,96973.0,0.2443707]
[1746115431790,0.2061686,96974.0,96973.0,0.2423707]
[1746115431992,0.2061686,96974.0,96973.0,0.0382]
[1746115432189,0.2061686,96974.0,96973.0,0.0352]
[1746115432494,0.2061686,96974.0,96973.0,0.0372]
[1746115433100,0.2361686,96974.0,96973.0,0.0372]
[1746115436002,0.2361686,96974.0,96973.0,0.004]
[1746115437193,0.2361686,96974.0,96973.0,0.002]
[1746115437504,0.3392886,96974.0,96973.0,0.002]
[1746115437999,0.2061813,96968.0,96967.0,0.0322]
[1746115438505,0.2061813,96968.0,96967.0,0.2383835]
[1746115438798,0.2061813,96968.0,96967.0,0.0629]
[1746115439195,0.2674813,96968.0,96967.0,0.0322]
[1746115439801,0.2674813,96968.0,96967.0,0.0629]
[1746115440405,0.2674813,96968.0,96967.0,0.0322]
[1746115440593,0.2674813,96968.0,96967.0,0.0342]
[1746115440899,0.2674813,96968.0,96967.0,0.0362]
[1746115441101,0.2674813,96968.0,96967.0,0.0352]
[1746115441593,0.2674813,96968.0,96967.0,0.0332]
[1746115442595,0.2674813,96968.0,96967.0,0.0623]
[1746115443496,0.2674813,96968.0,96967.0,0.0332]
[1746115444099,0.2674813,96968.0,96967.0,0.0342]
[1746115444505,0.2674813,96968.0,96967.0,0.0332]
[1746115444810,0.2674813,96968.0,96967.0,0.0322]
[1746115446106,0.2061835,96967.0,96961.0,0.3608]
[1746115446306,0.2061835,96967.0,96961.0,0.3934]
[1746115446604,0.2695835,96967.0,96961.0,0.3934]
[1746115447308,0.2695835,96967.0,96966.0,0.00354691]
[1746115447809,0.2695835,96967.0,96966.0,0.00254691]
[1746115447995,0.2695835,96967.0,96966.0,0.00154691]
[1746115450308,0.2061835,96967.0,96966.0,0.20773251]
[1746115450605,0.2061835,96967.0,96966.0,0.20873251]
[1746115451311,0.2061835,96967.0,96966.0,0.27133251]
[1746115452111,0.2577087,96977.0,96976.0,0.2061643]
[1746115452307,0.2061665,96975.0,96974.0,0.2577088]
[1746115452508,0.2061665,96975.0,96974.0,0.2061672]
[1746115452707,0.2061665,96975.0,96971.0,0.0823432]
[1746115452708,0.2061728,96973.0,96972.0,0.2061715]
[1746115452909,0.2061728,96973.0,96972.0,0.2368715]
[1746115453108,0.2061728,96973.0,96972.0,0.2680715]
[1746115453309,0.2061728,96973.0,96972.0,0.0619]
[1746115453609,0.2061728,96973.0,96972.0,0.2680728]
[1746115453911,0.2061728,96973.0,96972.0,0.2700728]
[1746115454105,0.2061728,96973.0,96972.0,0.2720728]
[1746115454505,0.2061681,96975.0,96974.0,0.2061665]
[1746115455013,0.2061681,96975.0,96974.0,0.2680665]
[1746115456614,0.206164,96977.0,96976.0,0.2061622]
[1746115457006,0.206164,96977.0,96976.0,0.2695622]
[1746115457205,0.206164,96977.0,96976.0,0.0634]
[1746115458006,0.2061496,96985.0,96976.0,0.0664]
[1746115458215,0.033,96987.0,96986.0,0.2061431]
[1746115458419,0.2061365,96991.0,96990.0,0.2061338]
[1746115458713,0.206141,96988.0,96987.0,0.2061403]
[1746115458917,0.206141,96988.0,96987.0,0.2701403]
[1746115459113,0.206141,96988.0,96987.0,0.064]
[1746115459314,0.271441,96988.0,96987.0,0.064]
[1746115460415,0.271441,96988.0,96987.0,0.065]
[1746115461220,0.271441,96988.0,96987.0,0.066]
[1746115462807,0.271441,96988.0,96987.0,0.0334]
[1746115463012,0.271441,96988.0,96987.0,0.0354]
[1746115463212,0.271441,96988.0,96987.0,0.0364]
[1746115463907,0.271441,96988.0,96987.0,0.0344]
[1746115464417,0.271441,96988.0,96987.0,0.0324]
[1746115464718,0.271441,96988.0,96987.0,0.0334]
[1746115465920,0.239241,96988.0,96987.0,0.0334]
[1746115466125,0.239241,96988.0,96987.0,0.0652]
[1746115466426,0.272141,96988.0,96987.0,0.0672]
[1746115466608,0.272141,96988.0,96987.0,0.0682]
[1746115469117,0.272141,96988.0,96987.0,0.0354]
[1746115469421,0.272141,96988.0,96987.0,0.0334]
[1746115469927,0.272141,96988.0,96987.0,0.0354]
[1746115470313,0.272141,96988.0,96987.0,0.0344]
[1746115472515,0.272141,96988.0,96987.0,0.0334]
[1746115472922,0.272141,96988.0,96987.0,0.0344]
[1746115473425,0.272141,96988.0,96987.0,0.0364]
[1746115474124,0.272141,96988.0,96987.0,0.0354]
[1746115475123,0.272141,96988.0,96987.0,0.0334]
[1746115475325,0.272141,96988.0,96987.0,0.0344]
[1746115476020,0.272141,96988.0,96987.0,0.0354]
[1746115476225,0.001,96996.0,96987.0,0.3962]
[1746115476430,0.001,96996.0,96995.0,0.566924]
[1746115476926,0.001,96996.0,96995.0,0.630124]
[1746115479024,0.001,96996.0,96995.0,0.633124]
[1746115479225,0.001,96996.0,96995.0,0.636124]
[1746115480328,0.001,96996.0,96995.0,0.64657027]
[1746115484723,0.2071218,96996.0,96995.0,0.64657027]
[1746115485233,0.2071218,96996.0,96995.0,0.64357027]
[1746115485532,0.001,96996.0,96995.0,0.64657027]
[1746115485722,0.2071218,96996.0,96995.0,0.3996]
[1746115486127,0.2071218,96996.0,96995.0,0.0388]
[1746115486430,0.2684218,96996.0,96995.0,0.0388]
[1746115486733,0.2684218,96996.0,96995.0,0.0358]
[1746115486934,0.2684218,96996.0,96995.0,0.0388]
[1746115487434,0.2684218,96996.0,96995.0,0.0368]
[1746115487929,0.25152208,96996.0,96995.0,0.0368]
[1746115488532,0.25152208,96996.0,96995.0,0.0338]
[1746115488734,0.25152208,96996.0,96995.0,0.0348]
[1746115493135,0.25152208,96996.0,96995.0,0.0338]
[1746115493327,0.25152208,96996.0,96995.0,0.0348]
[1746115494331,0.0613,96996.0,96995.0,0.601724]
[1746115494533,0.0313,97004.0,97003.0,0.206107]
[1746115494739,0.2889369,97004.0,97003.0,0.206107]
[1746115495035,0.3200369,97004.0,97003.0,0.206107]
[1746115495438,0.2685105,97004.0,97003.0,0.206107]
[1746115495628,0.2685105,97004.0,97003.0,0.268407]
[1746115495826,0.2516128,97004.0,97003.0,0.27623173]
[1746115496033,0.0515224,97012.0,97004.0,0.2061048]
[1746115496238,0.2060964,97010.0,97009.0,0.2060889]
[1746115496629,0.2061025,97006.0,97005.0,0.257624]
[1746115496828,0.2576243,97008.0,97007.0,0.2060985]
[1746115497031,0.2060985,97007.0,97006.0,0.0623]
[1746115497336,0.2705985,97007.0,97006.0,0.2684006]
[1746115498040,0.2705985,97007.0,97006.0,0.0623]
[1746115498234,0.2705985,97007.0,97006.0,0.2684006]
[1746115499038,0.2705985,97007.0,97006.0,0.2368006]
[1746115499343,0.3007985,97007.0,97006.0,0.2388006]
[1746115500335,0.05152,97016.0,97015.0,0.2060769]
[1746115500541,0.05152,97016.0,97011.0,0.0515224]
[1746115500542,0.2060857,97014.0,97013.0,0.206084]
[1746115500741,0.2060857,97014.0,97013.0,0.0633]
[1746115501243,0.2060857,97014.0,97013.0,0.0307]
[1746115501434,0.2677857,97014.0,97013.0,0.0307]
[1746115502532,0.2687857,97014.0,97013.0,0.0307]
[1746115503645,0.2697857,97014.0,97013.0,0.0307]
[1746115504244,0.0637,97014.0,96984.0,0.0515367]
[1746115504442,0.2060921,97010.0,97009.0,0.0305]
[1746115505330,0.2711921,97010.0,97009.0,0.0305]
[1746115505544,0.2061048,97004.0,97003.0,0.37062473]
[1746115506242,0.2061048,97004.0,97003.0,0.57673173]
[1746115506542,0.2382048,97004.0,97003.0,0.57673173]
[1746115506745,0.2382048,97004.0,97003.0,0.57873173]
[1746115506937,0.2712048,97004.0,97003.0,0.57873173]
[1746115507742,0.2712048,97004.0,97003.0,0.57673173]
[1746115508243,0.2712048,97004.0,97003.0,0.60803173]
[1746115508432,0.0525149,97026.0,97007.0,0.2060928]
[1746115508637,0.20609,97011.0,97010.0,0.3904521]
[1746115508838,0.20609,97011.0,97010.0,0.2060917]
[1746115509136,0.26729,97011.0,97010.0,0.2060917]
[1746115509337,0.26729,97011.0,97010.0,0.0313]
[1746115514349,0.26729,97011.0,97010.0,0.2373921]
[1746115514547,0.2060686,97024.0,97023.0,0.2060602]
[1746115514747,0.2060645,97023.0,97022.0,0.0616]
[1746115514942,0.2060645,97023.0,97022.0,0.2676666]
[1746115515350,0.2060645,97023.0,97022.0,0.0616]
[1746115515750,0.2060645,97023.0,97022.0,0.0302]
[1746115516246,0.2702645,97023.0,97022.0,0.0302]
[1746115517141,0.2702645,97023.0,97022.0,0.2362666]
[1746115517344,0.002,97023.0,97022.0,0.2693666]
[1746115517537,0.2110645,97023.0,97022.0,0.2693666]
[1746115517742,0.2110645,97023.0,97022.0,0.27979245]
[1746115518245,0.3179774,97025.0,97024.0,0.2060623]
[1746115518751,0.2070593,97026.0,97025.0,0.2060602]
[1746115519342,0.001,97026.0,97025.0,0.2060602]
[1746115519546,0.01040895,97044.0,97022.0,0.12524195]
[1746115519547,0.0515068,97041.0,97038.0,0.2060305]
[1746115519747,0.2363323,97039.0,97038.0,0.2060305]
[1746115520052,0.2060347,97037.0,97036.0,0.3608]
[1746115521342,0.2700347,97037.0,97036.0,0.3608]
[1746115521851,0.2720347,97037.0,97036.0,0.3608]
[1746115522551,0.2720347,97037.0,97036.0,0.3939]
[1746115522954,0.2750347,97037.0,97036.0,0.3939]
[1746115528556,0.2750347,97037.0,97036.0,0.3608]
[1746115530960,0.2060475,97031.0,97030.0,0.03]
[1746115531855,0.2692475,97031.0,97030.0,0.03]
[1746115532061,0.2712475,97031.0,97030.0,0.03]
[1746115533059,0.2732475,97031.0,97030.0,0.03]
[1746115537861,0.2060602,97025.0,97024.0,0.3608]
[1746115538062,0.2061048,97004.0,97003.0,9e-08]
[1746115538363,0.5669048,97004.0,97003.0,9e-08]
[1746115538561,0.57726225,97004.0,97003.0,9e-08]
[1746115538961,0.57726225,97004.0,96987.0,0.20768639]
[1746115538962,0.2061218,96996.0,96987.0,0.00154659]
[1746115539167,0.2061218,96996.0,96989.0,0.0331]
[1746115539761,0.2701218,96996.0,96995.0,0.36183098]
[1746115539955,0.2061185,96998.0,96997.0,0.2061176]
[1746115540160,0.2061137,97003.0,97002.0,0.257629]
[1746115540363,0.2061137,97003.0,96999.0,0.0515283]
[1746115540364,0.257625,97009.0,97008.0,0.2060875]
[1746115540668,0.257625,97009.0,97008.0,0.5668875]
[1746115540865,0.257625,97009.0,97008.0,0.3608]
[1746115541563,0.257625,97009.0,97008.0,0.3628]
[1746115541965,0.257625,97009.0,97008.0,0.3658]
[1746115542364,0.257625,97009.0,97008.0,0.3638]
[1746115542871,0.257625,97009.0,97008.0,0.3628]
[1746115543071,0.257625,97009.0,97008.0,0.3638]
[1746115543469,0.257625,97009.0,97008.0,0.3618]
[1746115543669,0.257625,97009.0,97008.0,0.3638]
[1746115544473,0.257625,97009.0,97008.0,0.3628]
[1746115544874,0.257625,97009.0,97008.0,0.3618]
[1746115545069,0.257625,97009.0,97008.0,0.3628]
[1746115545572,0.257625,97009.0,97008.0,0.3618]
[1746115546066,0.257625,97009.0,97008.0,0.3628]
[1746115547671,0.257625,97009.0,97008.0,0.5678963]
[1746115548365,0.257625,97009.0,97008.0,0.5688963]
[1746115548574,0.257625,97009.0,97008.0,0.3628]
[1746115549167,0.257625,97009.0,97008.0,0.3638]
[1746115550676,0.257625,97009.0,97008.0,0.3628]
[1746115550876,0.257625,97009.0,97008.0,0.3648]
[1746115551264,0.257625,97009.0,97008.0,0.3608]
[1746115551471,0.257625,97009.0,97008.0,0.3648]